[Event "RUS-ch Boys U21 2021"]
[Site "Loo"]
[Date "2021.04.28"]
[Round "8.10"]
[White "Babanin, Gleb"]
[Black "Shemyakin, Valeriy"]
[Result "1-0"]
[ECO "A40"]
[WhiteElo "2123"]
[BlackElo "2168"]
[Annotator "RC"]
[PlyCount "59"]
[EventDate "2021.04.21"]
[EventType "swiss"]
[EventCountry "RUS"]
[SourceTitle "playchess.com"]
[Source "ChessBase"]
[SourceQuality "1"]
[TimeControl "40/5400+30:1800+30"]

1. d4 {[%emt 0:00:00]} g6 {[%emt 0:06:41]} 2. c4 {[%emt 0:00:00]} Bg7 {[%emt 0:00:02]} 3. Nf3 {[%emt 0:00:06]} d6 {[%emt 0:00:07]} 4. Nc3 {[%emt 0:00:07]} Nc6 {[%emt 0:00:03]} 5. d5 {[%emt 0:02:14]} Nb8 {[%emt 0:00:29]} 6. e4 {[%emt 0:00:21]} e5 {[%emt 0:00:04]} 7. Be2 {[%emt 0:03:15]} f5 {[%emt 0:01:49]} 8. exf5 {[%emt 0:12:28]} gxf5 {[%emt 0:01:29]} 9. Ng5 {[%emt 0:00:26]} Nf6 {[%emt 0:04:15]} 10. Bh5+ {[%emt 0:22:19]} Kf8 {[%emt 0:00:52]} 11. f4 {[%emt 0:00:15]} h6 {[%emt 0:07:40]} 12. Ne6+ {[%emt 0:01:48]} Bxe6 {[%emt 0:00:19]} 13. dxe6 {[%emt 0:00:03]} Nc6 {[%emt 0:04:02]} 14. fxe5 {[%emt 0:03:48]} dxe5 {[%emt 0:00:39]} 15. Nd5 {[%emt 0:01:48]} Nxd5 {[%emt 0:01:49]} 16. cxd5 {[%emt 0:00:08]} Qh4+ {[%emt 0:01:59]} 17. g3 {[%emt 0:03:33]} Qe4+ {[%emt 0:01:12]} 18. Kf2 {[%emt 0:00:05]} Nd4 {[%emt 0:05:16]} 19. Bf3 {[%emt 0:01:35]} Qxf3+ {[%emt 0:11:10]} 20. Qxf3 {[%emt 0:00:03]} Nxf3 {[%emt 0:00:02]} 21. Kxf3 {[%emt 0:00:04]} Ke8 {[%emt 0:00:23]} 22. Be3 {[%emt 0:00:34]} Bf8 {[%emt 0:00:47]} 23. g4 {[%emt 0:04:22]} f4 {[%emt 0:04:42]} 24. Bf2 {[%emt 0:00:30]} Bd6 {[%emt 0:01:15]} 25. Ke4 {[%emt 0:00:36]} c6 {[%emt 0:07:30]} 26. Rhd1 {[%emt 0:02:38]} c5 {[%emt 0:06:42]} 27. Rac1 {[%emt 0:00:46]} Rc8 {[%emt 0:00:23]} 28. b4 {[%emt 0:02:04]} c4 {[%emt 0:00:33]} 29. Bc5 {[%emt 0:00:09]} Bxc5 {[%emt 0:02:16]} 30. Rxc4 {[%emt 0:00:05]} 1-0

[Event "RUS-ch Boys U21 2021"]
[Site "Loo"]
[Date "2021.04.29"]
[Round "9.2"]
[White "Murzin, Volodar"]
[Black "Pavlov, Danila"]
[Result "1-0"]
[ECO "C11"]
[WhiteElo "2478"]
[BlackElo "2360"]
[Annotator "ChessBase"]
[PlyCount "81"]
[EventDate "2021.04.21"]
[EventType "swiss"]
[EventCountry "RUS"]
[SourceTitle "playchess.com"]
[Source "ChessBase"]
[SourceQuality "1"]
[TimeControl "40/5400+30:1800+30"]

1. e4 {[%emt 0:00:49]} e6 {[%emt 0:00:00]} 2. d4 {[%emt 0:00:13]} d5 {[%emt 0:00:00]} 3. Nc3 {[%emt 0:00:05]} Nf6 {[%emt 0:00:00]} 4. e5 {[%emt 0:00:04]} Nfd7 {[%emt 0:00:00]} 5. f4 {[%emt 0:00:13]} c5 {[%emt 0:00:00]} 6. Nf3 {[%emt 0:00:02]} Nc6 {[%emt 0:00:00]} 7. Be3 {[%emt 0:00:11]} cxd4 {[%emt 0:00:00]} 8. Nxd4 {[%emt 0:00:07]} Bc5 {[%emt 0:00:02]} 9. Qd2 {[%emt 0:01:16]} O-O {[%emt 0:00:05]} 10. O-O-O {[%emt 0:00:09]} a6 {[%emt 0:00:08]} 11. Qf2 {[%emt 0:00:37]} Nxd4 {[%emt 0:00:07]} 12. Bxd4 {[%emt 0:00:04]} Qe7 {[%emt 0:00:05]} 13. Bd3 {[%emt 0:01:14]} b5 {[%emt 0:00:48]} 14. Ne2 {[%emt 0:01:04]} Bb7 {[%emt 0:05:27]} 15. Rhe1 {[%emt 0:07:06]} Rac8 {[%emt 0:03:58]} 16. Kb1 {[%emt 0:06:07]} b4 {[%emt 0:05:58]} 17. Qg3 {[%emt 0:10:37]} f5 {[%emt 0:20:55]} 18. exf6 {[%emt 0:18:52]} Nxf6 {[%emt 0:00:00]} 19. f5 {[%emt 0:00:22]} exf5 {[%emt 0:30:07]} 20. Bxf5 {[%emt 0:02:36]} Ne4 {[%emt 0:01:14]} 21. Qh3 {[%emt 0:06:01]} Ng5 {[%emt 0:00:15]} 22. Qg4 {[%emt 0:01:39]} h5 {[%emt 0:06:36]} 23. Bxc5 {[%emt 0:03:05]} Rxc5 {[%emt 0:00:47]} 24. Qxb4 {[%emt 0:00:16]} Rc7 {[%emt 0:04:01]} 25. Qxe7 {[%emt 0:07:02]} Rxe7 {[%emt 0:00:01]} 26. Nd4 {[%emt 0:00:09]} Ne4 {[%emt 0:00:27]} 27. Kc1 {[%emt 0:03:27]} Re5 {[%emt 0:01:51]} 28. Rf1 {[%emt 0:00:47]} Rfe8 {[%emt 0:01:58]} 29. Rde1 {[%emt 0:02:04]} a5 {[%emt 0:01:53]} 30. Rf3 {[%emt 0:01:03]} R8e7 {[%emt 0:00:58]} 31. Ree3 {[%emt 0:10:22]} h4 {[%emt 0:02:39]} 32. g3 {[%emt 0:03:35]} g5 {[%emt 0:05:21]} 33. gxh4 {[%emt 0:03:23]} gxh4 {[%emt 0:00:02]} 34. Rf4 {[%emt 0:00:20]} Rg7 {[%emt 0:01:53]} 35. Re1 {[%emt 0:01:07]} Rg2 {[%emt 0:04:07]} 36. Be6+ {[%emt 0:02:32]} Kh7 {[%emt 0:00:07]} 37. Rxh4+ {[%emt 0:00:55]} Kg6 {[%emt 0:00:05]} 38. Rh8 {[%emt 0:04:31]} Rf2 {[%emt 0:02:21]} 39. Rb8 {[%emt 0:01:17]} Ba6 {[%emt 0:01:07]} 40. Rb6 {[%emt 0:00:00]} Nd6 {[%emt 0:00:00]} 41. Rg1+ {[%emt 0:00:34]} 1-0

[Event "RUS-ch Boys U21 2021"]
[Site "Loo"]
[Date "2021.04.29"]
[Round "9.3"]
[White "Golikov, Daniil"]
[Black "Lobanov, Sergei"]
[Result "0-1"]
[ECO "D21"]
[WhiteElo "2250"]
[BlackElo "2520"]
[Annotator "ChessBase"]
[PlyCount "62"]
[EventDate "2021.04.21"]
[EventType "swiss"]
[EventCountry "RUS"]
[SourceTitle "playchess.com"]
[Source "ChessBase"]
[SourceQuality "1"]
[TimeControl "40/5400+30:1800+30"]

1. d4 {[%emt 0:00:00]} d5 {[%emt 0:00:00]} 2. c4 {[%emt 0:00:00]} dxc4 {[%emt 0:00:00]} 3. Nf3 {[%emt 0:00:00]} a6 {[%emt 0:00:19]} 4. e3 {[%emt 0:02:54]} Bg4 {[%emt 0:00:07]} 5. Bxc4 {[%emt 0:07:18]} e6 {[%emt 0:00:05]} 6. Nbd2 {[%emt 0:01:03]} Nf6 {[%emt 0:05:38]} 7. O-O {[%emt 0:02:14]} Nc6 {[%emt 0:05:04]} 8. b3 {[%emt 0:04:07]} Bd6 {[%emt 0:15:12]} 9. Bb2 {[%emt 0:00:34]} O-O {[%emt 0:00:05]} 10. a3 {[%emt 0:12:51]} Nd5 {[%emt 0:00:43]} 11. Qc2 {[%emt 0:01:45]} f5 {[%emt 0:02:36]} 12. Ne5 {[%emt 0:08:12]} Nxe5 {[%emt 0:07:18]} 13. dxe5 {[%emt 0:01:38]} Bc5 {[%emt 0:07:07]} 14. Rfe1 {[%emt 0:19:55]} Ba7 {[%emt 0:30:12]} 15. Nf1 {[%emt 0:01:32]} Qe7 {[%emt 0:04:44]} 16. b4 {[%emt 0:03:05]} Rad8 {[%emt 0:00:29]} 17. Kh1 {[%emt 0:03:15]} Rd7 {[%emt 0:08:57]} 18. f3 {[%emt 0:03:22]} Bh5 {[%emt 0:00:08]} 19. Rad1 {[%emt 0:01:20]} Rfd8 {[%emt 0:00:21]} 20. Bb3 {[%emt 0:02:35]} c5 {[%emt 0:01:11]} 21. bxc5 {[%emt 0:01:05]} Bxc5 {[%emt 0:00:16]} 22. Qc1 {[%emt 0:01:28]} b6 {[%emt 0:01:03]} 23. e4 {[%emt 0:03:39]} fxe4 {[%emt 0:00:42]} 24. Rxe4 {[%emt 0:00:02]} Bg6 {[%emt 0:01:28]} 25. Ree1 {[%emt 0:00:26]} Qh4 {[%emt 0:02:51]} 26. Qc4 {[%emt 0:06:05]} Qxc4 {[%emt 0:04:03]} 27. Bxc4 {[%emt 0:00:01]} b5 {[%emt 0:00:00]} 28. Bb3 {[%emt 0:01:12]} Nf4 {[%emt 0:00:38]} 29. Rxd7 {[%emt 0:00:48]} Rxd7 {[%emt 0:00:00]} 30. g3 {[%emt 0:01:46]} Rd3 {[%emt 0:00:21]} 31. Bd1 {[%emt 0:04:54]} Bf2 {[%emt 0:00:20]} 0-1

[Event "RUS-ch Boys U21 2021"]
[Site "Loo"]
[Date "2021.04.29"]
[Round "9.4"]
[White "Nesterov, Arseniy"]
[Black "Tsvetkov, Andrey"]
[Result "1/2-1/2"]
[ECO "D43"]
[WhiteElo "2482"]
[BlackElo "2404"]
[Annotator "ChessBase"]
[PlyCount "82"]
[EventDate "2021.04.21"]
[EventType "swiss"]
[EventCountry "RUS"]
[SourceTitle "playchess.com"]
[Source "ChessBase"]
[SourceQuality "1"]
[TimeControl "40/5400+30:1800+30"]

1. d4 {[%emt 0:00:00]} d5 {[%emt 0:00:00]} 2. c4 {[%emt 0:00:00]} e6 {[%emt 0:00:00]} 3. Nf3 {[%emt 0:00:00]} Nf6 {[%emt 0:00:00]} 4. Nc3 {[%emt 0:00:00]} c6 {[%emt 0:00:00]} 5. Bg5 {[%emt 0:00:00]} h6 {[%emt 0:00:08]} 6. Bxf6 {[%emt 0:00:00]} Qxf6 {[%emt 0:00:04]} 7. e3 {[%emt 0:00:00]} Nd7 {[%emt 0:00:17]} 8. Be2 {[%emt 0:00:17]} g6 {[%emt 0:00:11]} 9. O-O {[%emt 0:00:09]} Bg7 {[%emt 0:00:07]} 10. cxd5 {[%emt 0:00:10]} exd5 {[%emt 0:00:13]} 11. b4 {[%emt 0:00:06]} a6 {[%emt 0:01:01]} 12. a4 {[%emt 0:00:09]} O-O {[%emt 0:00:15]} 13. b5 {[%emt 0:00:05]} Qd6 {[%emt 0:09:00]} 14. bxc6 {[%emt 0:07:03]} bxc6 {[%emt 0:01:21]} 15. Rb1 {[%emt 0:09:39]} Re8 {[%emt 0:02:00]} 16. a5 {[%emt 0:04:55]} Ra7 {[%emt 0:05:53]} 17. Qa4 {[%emt 0:10:56]} Rc7 {[%emt 0:08:52]} 18. Rfd1 {[%emt 0:08:10]} Kh7 {[%emt 0:07:32]} 19. Qa2 {[%emt 0:06:00]} Bb7 {[%emt 0:09:20]} 20. Na4 {[%emt 0:02:44]} c5 {[%emt 0:02:57]} 21. dxc5 {[%emt 0:03:04]} Nxc5 {[%emt 0:00:04]} 22. Rb6 {[%emt 0:03:01]} Qf8 {[%emt 0:03:59]} 23. Nxc5 {[%emt 0:07:36]} Qxc5 {[%emt 0:00:02]} 24. Bxa6 {[%emt 0:01:53]} Bxa6 {[%emt 0:01:08]} 25. Rxa6 {[%emt 0:00:02]} d4 {[%emt 0:02:30]} 26. exd4 {[%emt 0:09:51]} Bxd4 {[%emt 0:00:31]} 27. Rb6 {[%emt 0:09:30]} Bg7 {[%emt 0:26:20]} 28. Rbb1 {[%emt 0:01:10]} Ra8 {[%emt 0:00:57]} 29. Rd5 {[%emt 0:00:30]} Qc3 {[%emt 0:02:31]} 30. h4 {[%emt 0:01:11]} Raa7 {[%emt 0:05:46]} 31. Rbd1 {[%emt 0:05:59]} Rc5 {[%emt 0:02:24]} 32. Rxc5 {[%emt 0:00:14]} Qxc5 {[%emt 0:00:04]} 33. Rd5 {[%emt 0:00:35]} Qc1+ {[%emt 0:00:05]} 34. Kh2 {[%emt 0:00:05]} Qf4+ {[%emt 0:00:16]} 35. Kh3 {[%emt 0:00:59]} Rc7 {[%emt 0:00:44]} 36. Qd2 {[%emt 0:01:15]} Qe4 {[%emt 0:00:12]} 37. Rd3 {[%emt 0:07:36]} Ra7 {[%emt 0:02:30]} 38. Ra3 {[%emt 0:01:35]} Bf8 {[%emt 0:00:24]} 39. Ra1 {[%emt 0:02:25]} Bb4 {[%emt 0:00:49]} 40. Qe3 {[%emt 0:00:00]} Qxe3 {[%emt 0:00:00]} 41. fxe3 {[%emt 0:00:33]} Rxa5 {[%emt 0:02:09]} 1/2-1/2

[Event "RUS-ch Boys U21 2021"]
[Site "Loo"]
[Date "2021.04.29"]
[Round "9.5"]
[White "Vetokhin, Savva"]
[Black "Marchuk, Rostislav"]
[Result "1-0"]
[ECO "C41"]
[WhiteElo "2261"]
[BlackElo "2080"]
[Annotator "NA"]
[PlyCount "107"]
[EventDate "2021.04.21"]
[EventType "swiss"]
[EventCountry "RUS"]
[SourceTitle "playchess.com"]
[Source "ChessBase"]
[SourceQuality "1"]
[TimeControl "40/5400+30:1800+30"]

1. e4 {[%emt 0:00:00]} d6 {[%emt 0:01:39]} 2. d4 {[%emt 0:00:00]} Nf6 {[%emt 0:00:02]} 3. Nc3 {[%emt 0:00:00]} e5 {[%emt 0:00:01]} 4. Nf3 {[%emt 0:00:04]} Nbd7 {[%emt 0:00:01]} 5. Bc4 {[%emt 0:00:15]} Be7 {[%emt 0:00:01]} 6. O-O {[%emt 0:00:08]} O-O {[%emt 0:00:02]} 7. a4 {[%emt 0:00:07]} c6 {[%emt 0:00:04]} 8. Ba2 {[%emt 0:00:06]} b6 {[%emt 0:01:50]} 9. Qe2 {[%emt 0:00:43]} a6 {[%emt 0:00:09]} 10. Rd1 {[%emt 0:00:16]} Qc7 {[%emt 0:00:03]} 11. Nh4 {[%emt 0:00:22]} exd4 {[%emt 0:03:28]} 12. Rxd4 {[%emt 0:00:17]} Re8 {[%emt 0:03:44]} 13. Bf4 {[%emt 0:04:29]} Ne5 {[%emt 0:03:56]} 14. Nf3 {[%emt 0:12:33]} Bg4 {[%emt 0:07:19]} 15. Rad1 {[%emt 0:06:49]} b5 {[%emt 0:07:44]} 16. Qe3 {[%emt 0:15:53]} Bf8 {[%emt 0:08:57]} 17. h3 {[%emt 0:03:48]} Bxf3 {[%emt 0:18:58]} 18. gxf3 {[%emt 0:00:02]} Qc8 {[%emt 0:02:21]} 19. Kg2 {[%emt 0:06:51]} d5 {[%emt 0:04:59]} 20. R4d2 {[%emt 0:07:04]} Ng6 {[%emt 0:04:40]} 21. Bg3 {[%emt 0:04:55]} b4 {[%emt 0:01:51]} 22. Ne2 {[%emt 0:00:02]} dxe4 {[%emt 0:00:31]} 23. fxe4 {[%emt 0:00:57]} Rxe4 {[%emt 0:04:24]} 24. Qf3 {[%emt 0:01:48]} Qe8 {[%emt 0:04:04]} 25. Nd4 {[%emt 0:02:12]} Rd8 {[%emt 0:03:26]} 26. Nf5 {[%emt 0:02:34]} Rxd2 {[%emt 0:00:40]} 27. Rxd2 {[%emt 0:00:01]} Nd5 {[%emt 0:09:15]} 28. Bxd5 {[%emt 0:01:21]} cxd5 {[%emt 0:00:01]} 29. Rxd5 {[%emt 0:00:08]} Qe6 {[%emt 0:00:37]} 30. Rd8 {[%emt 0:04:04]} Re1 {[%emt 0:01:58]} 31. Bd6 {[%emt 0:02:12]} Qc4 {[%emt 0:04:47]} 32. Kh2 {[%emt 0:05:39]} h6 {[%emt 0:01:15]} 33. Qg2 {[%emt 0:02:33]} Kh7 {[%emt 0:01:23]} 34. Rxf8 {[%emt 0:08:37]} Qe6 {[%emt 0:00:02]} 35. Bxb4 {[%emt 0:00:52]} Qxf5 {[%emt 0:00:55]} 36. Rxf7 {[%emt 0:04:55]} Qxf7 {[%emt 0:00:27]} 37. Bxe1 {[%emt 0:00:01]} Qc7+ {[%emt 0:00:32]} 38. Qg3 {[%emt 0:02:11]} Qxc2 {[%emt 0:00:02]} 39. b3 {[%emt 0:00:11]} Qe4 {[%emt 0:02:00]} 40. Bc3 {[%emt 0:00:00]} Qc6 {[%emt 0:00:00]} 41. b4 {[%emt 0:03:47]} h5 {[%emt 0:04:11]} 42. h4 {[%emt 0:13:25]} Qe4 {[%emt 0:08:36]} 43. b5 {[%emt 0:00:30]} axb5 {[%emt 0:00:09]} 44. axb5 {[%emt 0:00:21]} Qb7 {[%emt 0:17:41]} 45. Bd4 Qd5 {[%emt 0:00:01]} 46. b6 {[%emt 0:00:59]} Qe4 {[%emt 0:00:57]} 47. Be3 {[%emt 0:00:55]} Nxh4 {[%emt 0:00:30]} 48. b7 {[%emt 0:00:30]} Nf3+ {[%emt 0:01:23]} 49. Qxf3 {[%emt 0:00:00]} Qxf3 {[%emt 0:00:02]} 50. b8=Q {[%emt 0:00:00]} Qg4 {[%emt 0:00:13]} 51. Qf4 {[%emt 0:00:17]} Qe6 {[%emt 0:00:11]} 52. Qg5 {[%emt 0:00:23]} Qf7 {[%emt 0:00:23]} 53. Bd4 {[%emt 0:00:17]} Kg8 {[%emt 0:00:21]} 54. Kg3 {[%emt 0:00:43]} 1-0

[Event "RUS-ch Boys U21 2021"]
[Site "Loo"]
[Date "2021.04.29"]
[Round "9.6"]
[White "Obgolts, Erik"]
[Black "Makovich, Andrey"]
[Result "1-0"]
[ECO "B28"]
[WhiteElo "2414"]
[BlackElo "2171"]
[Annotator "NA"]
[PlyCount "115"]
[EventDate "2021.04.21"]
[EventType "swiss"]
[EventCountry "RUS"]
[SourceTitle "playchess.com"]
[Source "ChessBase"]
[SourceQuality "1"]
[TimeControl "40/5400+30:1800+30"]

1. e4 {[%emt 0:00:00]} c5 {[%emt 0:00:00]} 2. Nf3 {[%emt 0:00:00]} a6 {[%emt 0:00:26]} 3. d4 {[%emt 0:01:02]} cxd4 {[%emt 0:00:14]} 4. Nxd4 {[%emt 0:00:04]} Nf6 {[%emt 0:00:07]} 5. Nc3 {[%emt 0:01:12]} e5 {[%emt 0:00:03]} 6. Nf3 {[%emt 0:04:59]} Bb4 {[%emt 0:00:06]} 7. Bd2 {[%emt 0:04:40]} d6 {[%emt 0:00:10]} 8. Bd3 {[%emt 0:00:26]} O-O {[%emt 0:05:42]} 9. O-O {[%emt 0:01:09]} Nbd7 {[%emt 0:02:47]} 10. a3 {[%emt 0:01:25]} Bxc3 {[%emt 0:00:11]} 11. Bxc3 {[%emt 0:00:05]} Nc5 {[%emt 0:00:03]} 12. Qe1 {[%emt 0:02:10]} b5 {[%emt 0:09:45]} 13. b4 {[%emt 0:01:53]} Na4 {[%emt 0:04:28]} 14. Bd2 {[%emt 0:02:28]} Bb7 {[%emt 0:03:11]} 15. Bg5 {[%emt 0:07:03]} Rc8 {[%emt 0:08:02]} 16. Qd2 {[%emt 0:02:31]} h6 {[%emt 0:01:40]} 17. Bh4 {[%emt 0:01:02]} Qe7 {[%emt 0:00:23]} 18. Rae1 {[%emt 0:02:29]} Qe6 {[%emt 0:02:31]} 19. h3 {[%emt 0:07:30]} Nh5 {[%emt 0:13:10]} 20. Bg3 {[%emt 0:01:37]} Nb2 {[%emt 0:17:04]} 21. Nh4 {[%emt 0:04:56]} Nxg3 {[%emt 0:02:17]} 22. fxg3 {[%emt 0:00:04]} d5 {[%emt 0:00:09]} 23. exd5 {[%emt 0:05:25]} Qxd5 {[%emt 0:01:06]} 24. Nf5 {[%emt 0:01:14]} Rfe8 {[%emt 0:01:05]} 25. Re4 {[%emt 0:06:19]} Rc6 {[%emt 0:05:23]} 26. Rg4 {[%emt 0:04:28]} Rg6 {[%emt 0:00:18]} 27. Ne3 {[%emt 0:00:43]} Qd8 {[%emt 0:00:51]} 28. Qf2 {[%emt 0:02:45]} Rxg4 {[%emt 0:03:59]} 29. Qxf7+ {[%emt 0:00:27]} Kh8 {[%emt 0:00:02]} 30. Nxg4 {[%emt 0:00:41]} Bd5 {[%emt 0:01:11]} 31. Qg6 {[%emt 0:02:36]} Nxd3 {[%emt 0:00:20]} 32. cxd3 {[%emt 0:00:26]} Bg8 {[%emt 0:00:31]} 33. Nxh6 {[%emt 0:03:13]} Bh7 {[%emt 0:01:23]} 34. Nf7+ {[%emt 0:00:18]} Kg8 {[%emt 0:00:01]} 35. Qh5 {[%emt 0:04:43]} Qb6+ {[%emt 0:03:14]} 36. Kh2 {[%emt 0:00:12]} Qg6 {[%emt 0:02:36]} 37. Qf3 {[%emt 0:04:07]} Qxd3 {[%emt 0:01:56]} 38. Nxe5 {[%emt 0:01:22]} Qxf3 {[%emt 0:00:05]} 39. Nxf3 {[%emt 0:00:03]} Re3 {[%emt 0:00:31]} 40. Ra1 {[%emt 0:00:00]} Rb3 {[%emt 0:00:00]} 41. g4 {[%emt 0:07:22]} Bd3 {[%emt 0:10:43]} 42. Kg3 {[%emt 0:00:54]} Kf7 {[%emt 0:02:50]} 43. Kf4 {[%emt 0:00:17]} Bc4 {[%emt 0:03:19]} 44. h4 {[%emt 0:00:32]} Rb2 {[%emt 0:02:37]} 45. Kg3 {[%emt 0:00:29]} Rb3 {[%emt 0:03:59]} 46. g5 {[%emt 0:04:16]} Bd5 {[%emt 0:07:22]} 47. h5 {[%emt 0:00:47]} Ke6 {[%emt 0:01:09]} 48. Kf4 {[%emt 0:00:09]} Kf7 {[%emt 0:00:32]} 49. Nd4 {[%emt 0:03:56]} Rd3 {[%emt 0:00:38]} 50. Ke5 {[%emt 0:02:10]} Bxg2 {[%emt 0:00:12]} 51. g6+ {[%emt 0:00:03]} Ke7 {[%emt 0:01:45]} 52. Nf5+ {[%emt 0:00:05]} Kf8 {[%emt 0:00:04]} 53. h6 {[%emt 0:00:54]} gxh6 {[%emt 0:00:28]} 54. Kf6 {[%emt 0:03:30]} Ke8 {[%emt 0:01:05]} 55. Re1+ {[%emt 0:00:36]} Kd7 {[%emt 0:00:25]} 56. Re5 {[%emt 0:00:31]} Bd5 {[%emt 0:02:37]} 57. Rxd5+ {[%emt 0:00:10]} Rxd5 {[%emt 0:00:04]} 58. g7 {[%emt 0:00:04]} 1-0

[Event "RUS-ch Boys U21 2021"]
[Site "Loo"]
[Date "2021.04.29"]
[Round "9.7"]
[White "Stukan, Martin"]
[Black "Zhafyarov, Adel"]
[Result "1-0"]
[ECO "A14"]
[WhiteElo "2390"]
[BlackElo "2252"]
[Annotator "NA"]
[PlyCount "107"]
[EventDate "2021.04.21"]
[EventType "swiss"]
[EventCountry "RUS"]
[SourceTitle "playchess.com"]
[Source "ChessBase"]
[SourceQuality "1"]
[TimeControl "40/5400+30:1800+30"]

1. c4 {[%emt 0:00:00]} Nf6 {[%emt 0:03:13]} 2. Nf3 {[%emt 0:00:00]} e6 {[%emt 0:01:57]} 3. g3 {[%emt 0:00:00]} d5 {[%emt 0:00:05]} 4. Bg2 {[%emt 0:00:00]} Be7 {[%emt 0:00:09]} 5. O-O {[%emt 0:00:10]} O-O {[%emt 0:00:11]} 6. d4 {[%emt 0:00:04]} b6 {[%emt 0:00:27]} 7. cxd5 {[%emt 0:00:54]} exd5 {[%emt 0:00:14]} 8. Nc3 {[%emt 0:00:04]} Bb7 {[%emt 0:00:54]} 9. Bf4 {[%emt 0:03:52]} c5 {[%emt 0:12:17]} 10. Ne5 {[%emt 0:16:25]} Nbd7 {[%emt 0:18:29]} 11. Qa4 {[%emt 0:09:47]} cxd4 {[%emt 0:04:27]} 12. Nxd7 {[%emt 0:01:26]} Qxd7 {[%emt 0:01:07]} 13. Qxd7 {[%emt 0:07:57]} Nxd7 {[%emt 0:00:51]} 14. Nxd5 {[%emt 0:01:53]} Bxd5 {[%emt 0:00:46]} 15. Bxd5 {[%emt 0:00:04]} Rac8 {[%emt 0:00:10]} 16. Rac1 {[%emt 0:06:01]} Nc5 {[%emt 0:18:13]} 17. Rc4 {[%emt 0:10:55]} Bf6 {[%emt 0:07:15]} 18. b3 {[%emt 0:03:38]} Rfe8 {[%emt 0:06:25]} 19. Bf3 {[%emt 0:01:30]} d3 {[%emt 0:03:16]} 20. e3 {[%emt 0:03:22]} b5 {[%emt 0:02:39]} 21. Rcc1 {[%emt 0:00:01]} Bb2 {[%emt 0:00:54]} 22. Rb1 {[%emt 0:09:11]} Bc3 {[%emt 0:00:17]} 23. Bd5 {[%emt 0:03:43]} d2 {[%emt 0:02:56]} 24. Rfd1 {[%emt 0:05:44]} Nd3 {[%emt 0:00:40]} 25. Bb7 {[%emt 0:00:16]} Rc5 {[%emt 0:05:36]} 26. b4 {[%emt 0:05:41]} Rc4 {[%emt 0:01:06]} 27. Ba6 {[%emt 0:01:00]} Rxb4 {[%emt 0:04:05]} 28. Rxb4 {[%emt 0:00:11]} Bxb4 {[%emt 0:00:29]} 29. Bxb5 {[%emt 0:00:05]} Rd8 {[%emt 0:00:50]} 30. Bxd3 {[%emt 0:00:08]} Rxd3 {[%emt 0:00:02]} 31. e4 {[%emt 0:00:04]} Ra3 {[%emt 0:00:31]} 32. Bxd2 {[%emt 0:00:34]} Rd3 {[%emt 0:00:05]} 33. Rb1 {[%emt 0:00:03]} Rxd2 {[%emt 0:02:24]} 34. Rxb4 {[%emt 0:00:03]} g6 {[%emt 0:00:03]} 35. Ra4 {[%emt 0:00:07]} Rd7 {[%emt 0:00:01]} 36. Kg2 {[%emt 0:00:14]} Rb7 {[%emt 0:00:37]} 37. g4 {[%emt 0:01:27]} Kg7 {[%emt 0:00:38]} 38. h4 {[%emt 0:00:22]} Kf6 {[%emt 0:00:45]} 39. Kf3 {[%emt 0:00:20]} Rc7 {[%emt 0:00:35]} 40. Kf4 {[%emt 0:00:00]} Re7 {[%emt 0:00:00]} 41. Ra6+ {[%emt 0:00:17]} Kg7 {[%emt 0:03:02]} 42. f3 {[%emt 0:00:21]} Kg8 {[%emt 0:01:25]} 43. Ra5 {[%emt 0:00:18]} Kg7 {[%emt 0:00:06]} 44. Ke3 {[%emt 0:00:10]} Rd7 {[%emt 0:00:10]} 45. Ra6 {[%emt 0:02:09]} Kf8 {[%emt 0:01:59]} 46. f4 {[%emt 0:00:36]} Rd1 {[%emt 0:09:50]} 47. Rxa7 {[%emt 0:00:18]} Rh1 {[%emt 0:00:05]} 48. f5 {[%emt 0:05:56]} gxf5 {[%emt 0:04:04]} 49. gxf5 {[%emt 0:01:24]} Rxh4 {[%emt 0:00:56]} 50. f6 {[%emt 0:00:53]} Ke8 {[%emt 0:00:01]} 51. a4 {[%emt 0:03:22]} Rh6 {[%emt 0:00:34]} 52. e5 {[%emt 0:01:19]} Rh1 {[%emt 0:02:01]} 53. a5 {[%emt 0:00:47]} Re1+ {[%emt 0:02:06]} 54. Kf4 {[%emt 0:00:06]} 1-0

[Event "RUS-ch Boys U21 2021"]
[Site "Loo"]
[Date "2021.04.29"]
[Round "9.8"]
[White "Makoveev, Ilya"]
[Black "Babanin, Gleb"]
[Result "1-0"]
[ECO "C67"]
[WhiteElo "2315"]
[BlackElo "2123"]
[Annotator "NA"]
[PlyCount "55"]
[EventDate "2021.04.21"]
[EventType "swiss"]
[EventCountry "RUS"]
[SourceTitle "playchess.com"]
[Source "ChessBase"]
[SourceQuality "1"]
[TimeControl "40/5400+30:1800+30"]

1. e4 {[%emt 0:00:00]} e5 {[%emt 0:00:00]} 2. Nf3 {[%emt 0:00:00]} Nc6 {[%emt 0:00:00]} 3. Bb5 {[%emt 0:00:05]} Nf6 {[%emt 0:00:00]} 4. O-O {[%emt 0:02:31]} Nxe4 {[%emt 0:00:00]} 5. Re1 {[%emt 0:00:39]} Nd6 {[%emt 0:00:00]} 6. Nxe5 {[%emt 0:00:07]} Be7 {[%emt 0:00:06]} 7. Bd3 {[%emt 0:00:28]} O-O {[%emt 0:06:57]} 8. Nc3 {[%emt 0:02:43]} Nxe5 {[%emt 0:04:44]} 9. Rxe5 {[%emt 0:00:08]} Bf6 {[%emt 0:00:18]} 10. Re3 {[%emt 0:00:39]} g6 {[%emt 0:01:33]} 11. Qf3 {[%emt 0:01:39]} Ne8 {[%emt 0:05:07]} 12. b3 {[%emt 0:18:16]} d5 {[%emt 0:06:29]} 13. Ba3 {[%emt 0:05:49]} d4 {[%emt 0:00:15]} 14. Bxf8 {[%emt 0:01:00]} dxe3 {[%emt 0:00:39]} 15. Bh6 {[%emt 0:00:43]} exf2+ {[%emt 0:04:27]} 16. Qxf2 {[%emt 0:00:34]} Ng7 {[%emt 0:02:08]} 17. Kh1 {[%emt 0:12:07]} Nf5 {[%emt 0:06:55]} 18. Bf4 {[%emt 0:01:28]} Be6 {[%emt 0:06:21]} 19. Rf1 {[%emt 0:02:32]} b6 {[%emt 0:13:58]} 20. Nb5 {[%emt 0:04:47]} c5 {[%emt 0:17:24]} 21. Nc7 {[%emt 0:03:33]} Bd7 {[%emt 0:00:04]} 22. Nxa8 {[%emt 0:02:28]} Qxa8 {[%emt 0:00:03]} 23. c3 {[%emt 0:04:12]} Qd5 {[%emt 0:04:13]} 24. Qf3 {[%emt 0:01:50]} Qxf3 {[%emt 0:02:20]} 25. Rxf3 {[%emt 0:00:18]} b5 {[%emt 0:01:15]} 26. Be4 {[%emt 0:03:46]} Be6 {[%emt 0:03:51]} 27. Bb8 {[%emt 0:00:40]} a5 {[%emt 0:00:14]} 28. g4 {[%emt 0:00:34]} 1-0